bitfinex/quotes_ETHUSD_20241101
["timestamp","ask_amount","ask_price","bid_price","bid_amount"]
[1730427746038,0.1217582,2500.4,2499.8,1.5893]
[1730427746328,0.1217582,2500.4,2499.9,0.07998916]
[1730427746527,4.1211282,2500.4,2499.9,0.07998916]
[1730427746831,3.99954,2500.3,2499.8,1.5893]
[1730427747002,0.1217582,2500.4,2499.8,1.5893]
[1730427747003,0.1217582,2500.4,2499.9,4.00004]
[1730427747328,0.1217582,2500.4,2499.9,4.55004]
[1730427747834,0.1217582,2500.4,2499.9,0.55]
[1730427749137,0.1217582,2500.4,2499.8,1.5893]
[1730427749431,3.99971,2500.2,2499.8,1.5893]
[1730427749631,3.99964,2500.3,2499.8,1.5893]
[1730427749790,0.1217582,2500.4,2499.5,3.0]
[1730427749791,3.99998,2500.1,2499.5,3.0]
[1730427749997,3.99998,2500.1,2499.5,4.5173]
[1730427750834,3.99998,2500.1,2499.5,1.5173]
[1730427751030,3.99998,2500.1,2499.1,0.01]
[1730427751031,4.00016,2499.9,2499.1,1.5331]
[1730427751233,1.5581,2500.1,2499.1,1.5331]
[1730427751234,5.55801,2500.1,2499.1,1.5331]
[1730427751417,4.00097,2499.4,2499.1,1.5331]
[1730427751738,4.00128,2499.2,2498.7,1.5331]
[1730427752037,4.00114,2499.3,2498.7,6.088702]
[1730427752231,0.03831931,2499.1,2498.7,6.088702]
[1730427752527,4.00097,2499.4,2498.7,6.088702]
[1730427752926,0.03831207,2499.3,2498.8,0.55]
[1730427753128,0.03831207,2499.3,2498.8,5.07658148]
[1730427754446,0.03831207,2499.3,2498.7,2.086632]
[1730427754738,0.03831207,2499.3,2497.9,1.6138]
[1730427754739,4.00251,2498.5,2497.9,1.6138]
[1730427754898,4.00273,2498.3,2497.9,1.6138]
[1730427755137,0.03788172,2498.2,2497.9,1.6138]
[1730427755360,4.00273,2498.3,2497.9,1.6138]
[1730427755578,0.03788172,2498.1,2497.9,1.6138]
[1730427755729,4.00251,2498.5,2497.9,1.6138]
[1730427755930,1.6512,2498.8,2497.6,1.6138]
[1730427755931,4.00309,2498.1,2497.6,1.6138]
[1730427756136,4.00339,2497.9,2497.3,5.61805]
[1730427756431,0.03761033,2497.8,2497.4,0.561805]
[1730427756628,0.03761033,2497.8,2497.5,0.08006634]
[1730427757069,4.00339,2497.9,2497.5,0.08006634]
[1730427757273,0.03761033,2497.7,2497.3,1.6138]
[1730427757433,4.00339,2497.9,2497.3,1.6138]
[1730427757634,0.03723036,2497.6,2497.3,1.6138]
[1730427757869,4.0037,2497.7,2497.4,0.08007322]
[1730427758038,0.03723036,2497.5,2497.0,4.00478]
[1730427758386,0.0371543,2497.4,2497.1,5.03668409]
[1730427758671,0.0371543,2497.4,2497.3,8.53872]
[1730427758898,4.00256,2498.4,2497.7,4.00359]
[1730427759211,1.522,2498.7,2497.5,4.00388]
[1730427759212,4.00305,2498.1,2497.5,4.00388]
[1730427759399,4.00313,2498.1,2497.5,4.00388]
[1730427759583,0.03689725,2498.0,2497.5,5.258138]
[1730427760054,4.00299,2498.2,2497.5,5.258138]
[1730427760255,0.03700225,2497.9,2497.5,5.258138]
[1730427760588,0.03699863,2497.8,2497.5,5.258138]
[1730427760793,0.03699863,2497.8,2497.6,0.08005949]
[1730427760954,4.00299,2498.2,2497.6,4.61758924]
[1730427761149,0.03698053,2498.1,2497.6,4.61758924]
[1730427761505,0.03698053,2498.1,2497.7,4.00357]
[1730427761650,0.03698053,2498.1,2497.8,0.08005844]
[1730427761851,5.52421,2498.7,2497.9,4.08329812]
[1730427762157,5.52421,2498.7,2497.9,0.92743981]
[1730427762511,4.00268,2498.4,2497.9,0.92743981]
[1730427763056,0.03699864,2498.3,2497.9,0.92743981]
[1730427763252,0.03699864,2498.3,2497.8,8.6446]
[1730427763253,0.03699864,2498.3,2497.8,4.6411]
[1730427763478,0.03699864,2498.3,2497.9,0.08005643]
[1730427763871,0.03699864,2498.3,2497.7,3.0]
[1730427764097,0.03699864,2498.3,2497.8,0.08005652]
[1730427764266,0.03699864,2498.3,2497.7,3.0]
[1730427764703,4.00299,2498.2,2497.7,3.0]
[1730427765019,0.03708191,2498.1,2497.7,3.0]
[1730427765356,1.62278191,2498.1,2497.4,4.00404]
[1730427765593,1.62278191,2498.1,2496.5,8.63040279]
[1730427765594,4.00385,2497.6,2496.8,4.00506]
[1730427765814,4.00421,2497.4,2496.8,4.559096]
[1730427766097,4.00385,2497.6,2496.8,4.559096]
[1730427766098,0.03696244,2497.5,2497.0,4.00477]
[1730427766317,4.00385,2497.6,2496.9,0.08008566]
[1730427766507,0.03696244,2497.4,2496.8,4.559096]
[1730427766655,4.00402,2497.5,2496.8,4.559096]
[1730427766992,4.00385,2497.6,2496.9,4.54092527]
[1730427767193,0.03696244,2497.4,2497.1,1.5223]
[1730427767393,4.00378,2497.7,2497.2,0.08007852]
[1730427767692,4.00356,2497.8,2497.2,0.08007852]
[1730427767902,0.03696244,2497.6,2497.2,4.08444852]
[1730427768058,4.00324,2498.0,2497.3,0.96113685]
[1730427768254,0.03696244,2497.5,2497.3,0.96113685]
[1730427768568,4.00326,2498.0,2497.4,4.08419089]
[1730427769297,4.00326,2498.0,2497.4,0.08007089]
[1730427769458,4.00337,2497.9,2497.4,0.08007089]
[1730427769659,4.00363,2497.8,2497.3,0.96113685]
[1730427770675,4.00363,2497.8,2497.1,5.52688]
[1730427770676,1.5857,2498.1,2497.1,1.5223]
[1730427771000,4.00396,2497.6,2497.1,1.5223]
[1730427771778,4.00358,2497.8,2497.2,0.08007646]
[1730427772062,8.00659,2498.0,2497.3,4.00429]
[1730427772399,1.5857,2498.1,2497.4,4.08423176]
[1730427772557,0.0368393,2497.9,2497.5,2.06652318]
[1730427772901,4.00305,2498.1,2497.5,2.06652318]
[1730427773111,0.03675601,2497.8,2497.5,2.06652318]
[1730427773397,0.03675601,2497.8,2497.2,8.00879]
[1730427773398,0.03675601,2497.7,2497.3,3.0]
[1730427773556,4.04046601,2497.7,2497.2,5.66248]
[1730427773959,4.04046601,2497.7,2497.2,1.6581]
[1730427774204,0.03675601,2497.7,2497.2,5.66257]
[1730427774555,10.21305279,2498.4,2497.2,5.66248]
[1730427774755,4.00346,2497.9,2497.2,4.6581]
[1730427774959,4.00346,2497.9,2497.3,4.00428]
[1730427775196,0.03675601,2497.8,2497.3,4.00428]
[1730427775402,0.03675601,2497.8,2497.3,4.221]
[1730427775605,0.03675601,2497.8,2497.2,9.528821]
[1730427775962,0.03675601,2497.8,2497.4,4.00407]
[1730427776192,4.00336,2497.9,2497.4,4.00407]
[1730427776506,4.00329,2498.0,2497.2,9.528751]
[1730427776674,0.03675601,2497.8,2497.2,13.533101]
[1730427776870,4.00293,2498.2,2497.4,4.00405]
[1730427777070,4.00293,2498.2,2497.5,4.08393611]
[1730427777071,0.03675601,2497.7,2497.5,4.08393611]
[1730427777283,4.00293,2498.2,2497.5,4.08393611]
[1730427777475,8.00595,2498.2,2497.5,4.08393611]
[1730427777707,0.03681032,2498.1,2497.6,4.00383]
[1730427777909,0.03681032,2498.1,2497.7,2.08585095]
[1730427778103,4.00288,2498.2,2497.7,6.08952095]
[1730427778304,5.58823,2498.4,2497.7,6.08952095]
[1730427778305,0.03681032,2498.0,2497.7,6.08952095]
[1730427778529,0.03687551,2498.1,2497.7,2.08585095]
[1730427778839,1.5856,2498.4,2497.7,2.00578961]
[1730427778840,4.00298,2498.2,2497.7,2.00578961]
[1730427779137,4.00371,2497.7,2497.4,1.6656]
[1730427779491,0.03695881,2497.6,2497.4,1.6656]
[1730427780447,0.03695881,2497.6,2497.5,4.004]
[1730427780625,0.03695881,2497.6,2497.4,5.66975]
[1730427780626,0.03695881,2497.6,2497.4,1.6656]
[1730427780810,4.00347,2497.9,2497.5,0.08007109]
[1730427781119,4.00347,2497.9,2496.8,8.62996279]
[1730427781120,0.03691899,2497.5,2497.1,1.5995]
[1730427781309,1.6622,2497.8,2497.0,4.0048]
[1730427781508,0.03691899,2497.4,2497.1,4.56494]
[1730427781721,4.00369,2497.7,2497.1,0.56043]
[1730427781928,0.0368357,2497.3,2497.1,0.56043]
[1730427782093,4.00397,2497.6,2497.1,0.56043]
[1730427782295,0.03678862,2497.2,2497.1,4.56507]
[1730427782499,4.00328,2498.0,2497.1,0.56043]
[1730427782700,0.03678862,2497.2,2496.9,1.5995]
[1730427782931,8.00762,2497.7,2497.0,4.00468]
[1730427783116,0.03678862,2497.1,2497.0,7.00468]
[1730427783321,8.00762,2497.7,2497.0,7.00468]
[1730427783535,0.03678862,2497.1,2497.0,7.00468]
[1730427783733,4.00379,2497.7,2497.0,7.00468]
[1730427783734,4.00379,2497.7,2497.0,8.265594]
[1730427783946,4.00379,2497.7,2497.2,4.00447]
[1730427784103,0.03679948,2497.6,2497.2,4.00436]
[1730427784303,0.03679948,2497.6,2497.4,1.5643]
[1730427784502,5.55222,2497.9,2497.4,1.5643]
[1730427784732,0.03679948,2497.5,2497.4,1.5643]
[1730427784939,5.55222,2497.9,2497.4,1.5643]
[1730427785195,0.03679948,2497.5,2497.4,1.5643]
[1730427785353,5.55222,2497.9,2497.4,1.5643]
[1730427785644,4.00371,2497.7,2497.2,4.00436]
[1730427785802,4.00381,2497.7,2497.2,1.3834284]
[1730427786211,0.03679948,2497.6,2497.2,1.3834284]
[1730427786654,8.00723,2497.8,2497.2,1.3834284]
[1730427786655,4.00359,2497.8,2497.2,1.3834284]
[1730427786816,0.03679948,2497.5,2497.3,4.00429]
[1730427787017,5.55216,2497.9,2497.3,4.00422]
[1730427787220,5.55216,2497.9,2497.3,5.09987084]
[1730427787221,0.03679948,2497.4,2497.3,5.09987084]
[1730427787530,1.5488,2497.9,2497.5,4.00397]
[1730427787715,5.50745,2498.2,2497.4,4.00415]
[1730427788052,4.00334,2498.0,2497.4,4.00414]
[1730427788263,4.00334,2498.0,2497.5,4.00396]
[1730427788432,4.00334,2498.0,2497.6,0.08006717]
[1730427788758,0.01,2498.8,2497.7,4.00353]
[1730427788759,4.00272,2498.3,2497.7,4.00353]
[1730427788943,4.00272,2498.3,2497.8,0.08006042]
[1730427789177,4.00242,2498.5,2497.8,0.08006042]
[1730427789353,4.00242,2498.5,2497.7,8.00719]
[1730427789354,4.00276,2498.3,2497.7,8.00719]
[1730427789655,4.00276,2498.3,2497.8,1.00299927]
[1730427789967,4.00347,2497.9,2497.3,6.61815084]
[1730427790260,4.0039,2497.6,2497.0,5.50679]
[1730427790466,5.63457,2497.7,2497.1,4.08470647]
[1730427790667,5.63457,2497.7,2497.2,0.55867065]
[1730427790836,5.63457,2497.7,2497.0,1.502]
[1730427790837,4.0041,2497.5,2497.0,1.502]
[1730427791357,4.0041,2497.5,2497.1,0.08008015]
[1730427791534,4.0041,2497.5,2497.0,4.502]
[1730427791535,4.0041,2497.5,2497.0,1.502]
[1730427791737,4.0041,2497.5,2497.0,4.502]
[1730427791738,8.00823,2497.5,2497.0,4.502]
[1730427791920,8.00823,2497.5,2497.1,0.08008367]
[1730427792118,4.0041,2497.5,2497.1,0.08008367]
[1730427793138,8.0082,2497.5,2497.1,0.08008367]
[1730427793618,4.0041,2497.5,2497.1,0.08008367]
[1730427794266,4.00433,2497.3,2496.7,1.6526]
[1730427794426,4.00481,2497.0,2496.4,1.6526]
[1730427794618,4.00524,2496.8,2496.4,1.6526]
[1730427794875,8.00973,2497.0,2496.4,2.2244519]
[1730427795222,4.0048,2497.0,2496.4,6.2301919]
[1730427795533,4.0048,2497.0,2496.4,6.2301819]
[1730427795737,4.0048,2497.0,2496.4,2.2244519]
[1730427795943,4.00514,2496.8,2496.4,2.2244519]
[1730427796153,4.00514,2496.8,2496.4,1.6526]
[1730427796537,4.0048,2497.0,2496.4,1.6526]
[1730427796763,8.00973,2497.0,2496.4,5.65836]
[1730427797173,4.00497,2496.9,2496.4,1.6526]
[1730427797468,8.00974,2497.0,2496.4,1.6526]
[1730427797627,8.00915,2497.2,2496.4,6.63066491]
[1730427797960,4.00453,2497.2,2496.4,6.63066491]
[1730427798261,8.00914,2497.2,2496.6,4.00543]
[1730427798664,4.00484,2497.0,2496.5,4.00559]
[1730427798983,4.00484,2497.0,2496.5,5.06921549]
[1730427799144,8.00976,2497.0,2496.5,1.06362549]
[1730427799343,4.00484,2497.0,2496.5,1.06362549]
[1730427799670,4.00484,2497.0,2496.5,5.06921549]
[1730427799868,4.00484,2497.0,2496.5,1.06362549]
[1730427800073,8.00976,2497.0,2496.5,1.06362549]
[1730427800268,4.00484,2497.0,2496.4,1.6526]
[1730427800575,4.00514,2496.8,2496.4,1.6526]
[1730427801234,4.00487,2497.0,2496.4,1.6526]
[1730427801542,4.00454,2497.2,2496.5,4.08566329]
[1730427801751,4.00467,2497.1,2496.5,4.00556]
[1730427801946,4.00467,2497.1,2496.6,0.55090048]
[1730427802124,4.00454,2497.2,2496.6,0.55090048]
[1730427802125,4.00454,2497.2,2496.7,0.08009689]
[1730427802340,0.03666182,2497.0,2496.7,0.08009689]
[1730427802539,4.00454,2497.2,2496.7,0.08009689]
[1730427802742,0.03666182,2496.9,2496.6,0.55090048]
[1730427802938,4.00481,2497.0,2496.4,5.65833]
[1730427803162,0.03666182,2496.8,2496.4,5.65833]
[1730427803367,4.00507,2496.9,2496.5,0.08009697]
[1730427803530,0.03666182,2496.7,2496.4,1.6526]
[1730427803730,4.00507,2496.9,2496.4,2.2244439]
[1730427804041,1.6471,2497.3,2496.5,0.08009903]
[1730427804042,8.00948,2497.1,2496.5,0.08009903]
[1730427804233,0.03666182,2496.8,2496.5,4.00551]
[1730427804562,4.00474,2497.1,2496.6,0.08009638]
[1730427804770,0.03666182,2496.7,2496.6,4.00544]
[1730427805078,5.65148,2497.3,2496.7,4.00518]
[1730427805079,4.00438,2497.3,2496.7,4.00518]
[1730427805376,4.00438,2497.3,2496.7,0.801062]
[1730427805377,4.00464,2497.1,2496.7,0.801062]
[1730427806169,4.00511,2496.9,2496.4,1.6526]
[1730427806373,4.00491,2497.0,2496.4,5.65831]
[1730427806555,4.00491,2497.0,2496.5,0.08010126]
[1730427806731,4.00496,2496.9,2496.5,0.08010126]
[1730427806932,4.00491,2497.0,2496.4,1.6526]
[1730427807129,4.00514,2496.8,2496.4,1.6526]
[1730427807433,4.0054,2496.7,2496.4,2.52446391]
[1730427807668,4.00504,2496.9,2496.4,2.52446391]
[1730427808525,4.00471,2497.1,2496.5,0.08010128]
[1730427808734,8.0095,2497.1,2496.5,4.08566128]
[1730427808934,4.00482,2497.0,2496.5,1.4416998]
[1730427809277,4.00471,2497.1,2496.5,1.4416998]
[1730427809444,4.00482,2497.0,2496.5,1.4416998]
[1730427809626,4.00471,2497.1,2496.5,5.4471898]
[1730427810032,8.00945,2497.1,2496.5,5.4471898]
[1730427810279,4.00471,2497.1,2496.5,5.4471898]
[1730427810469,8.00947,2497.1,2496.5,5.4471898]
[1730427810642,4.00471,2497.1,2496.5,9.4526898]
[1730427810825,4.00471,2497.1,2496.5,5.36708852]
[1730427811030,4.00471,2497.1,2496.5,5.44718984]
[1730427811290,4.00471,2497.1,2496.5,1.36159852]
[1730427811594,4.00471,2497.1,2496.4,1.6526]
[1730427811806,4.00492,2497.0,2496.4,5.65825]
[1730427812160,4.00499,2496.9,2496.4,1.6526]
[1730427812360,4.00499,2496.9,2496.4,5.65835]
[1730427812559,4.00499,2496.9,2496.5,1.266417]
[1730427813158,4.00516,2496.8,2496.4,1.6526]
[1730427813400,8.01007,2496.9,2496.4,1.6526]
[1730427813606,4.00499,2496.9,2496.4,1.6526]
[1730427814403,4.00499,2496.9,2496.4,5.65834]
[1730427814989,1.5305,2497.3,2496.4,1.6526]
[1730427815346,4.00486,2497.0,2496.4,1.6526]
[1730427815459,4.00467,2497.1,2496.5,4.08557238]
[1730427815664,4.00459,2497.2,2496.5,4.08557238]
[1730427815876,4.00459,2497.2,2496.6,4.00541]
[1730427816071,1.5305,2497.3,2496.8,4.00512]
[1730427816370,3.99453,2497.2,2496.6,0.55]
[1730427816675,5.53484,2497.3,2496.7,4.00516]
[1730427817378,4.00461,2497.2,2496.6,4.00542]
[1730427817579,4.00461,2497.2,2496.6,5.02917472]
[1730427817580,3.99461,2497.2,2496.6,5.02917472]
[1730427817997,3.99461,2497.2,2496.7,4.00523]
[1730427818198,3.99461,2497.2,2496.6,5.02917472]
[1730427818603,7.99919,2497.2,2496.6,5.02917472]
[1730427818811,3.99461,2497.2,2496.6,5.02917472]
[1730427819116,3.98461,2497.2,2496.6,5.02917472]
[1730427819318,3.98461,2497.2,2496.7,5.52357]
[1730427819520,3.98461,2497.2,2496.7,1.5183]
[1730427819681,1.6002,2497.1,2496.7,4.08534611]
[1730427819886,3.98461,2497.2,2496.7,4.08534611]
[1730427820086,4.0049,2497.0,2496.7,1.14427819]
[1730427820326,3.75908182,2497.3,2496.5,1.5273]
[1730427820514,3.99516,2496.8,2496.5,1.5273]
[1730427820818,4.00498,2496.9,2496.5,1.5273]
[1730427821018,4.00486,2497.0,2496.5,1.5273]
[1730427821323,5.62618,2496.9,2496.4,0.08010352]
[1730427821505,5.62616,2496.9,2496.4,0.08010352]
[1730427822418,1.6212,2496.9,2496.6,4.00541]
[1730427822623,4.0042,2497.4,2496.9,4.00494]
[1730427822897,4.00388,2497.6,2497.0,4.08487911]
[1730427823058,4.00388,2497.6,2497.0,8.00949]
[1730427823401,3.99388,2497.6,2497.0,4.0047]
[1730427823745,3.99388,2497.6,2497.0,4.860673]
[1730427823943,1.6107,2497.7,2497.0,4.860673]
[1730427823944,5.61438,2497.7,2497.2,1.5757]
[1730427825158,4.00386,2497.6,2497.2,1.5757]
[1730427825449,4.00292,2498.2,2497.2,1.5757]
[1730427825450,5.6353,2498.0,2497.3,0.55]
[1730427825608,4.0033,2498.0,2497.4,4.08413017]
[1730427825972,4.00265,2498.4,2497.7,4.00357]
[1730427826252,4.00283,2498.3,2497.7,4.00357]
[1730427826468,4.00292,2498.2,2497.7,4.00357]
[1730427826660,4.00292,2498.2,2497.7,4.966418]
[1730427827012,4.00265,2498.4,2497.7,4.966418]
[1730427827329,4.00265,2498.4,2497.8,6.20832]
[1730427827530,4.00265,2498.4,2497.8,10.21184]
[1730427828111,4.00265,2498.4,2497.8,6.20832]
[1730427828315,4.00305,2498.1,2497.8,1.6548]
[1730427828652,1.6135,2498.0,2497.5,1.6548]
[1730427828961,1.6135,2498.0,2497.1,3.0]
[1730427828962,4.00474,2497.1,2496.6,1.6548]
[1730427829155,4.00474,2497.1,2496.3,4.0059]
[1730427829156,4.00466,2497.1,2496.3,4.0059]
[1730427829363,4.00466,2497.1,2496.4,2.06139591]
[1730427829364,4.00497,2496.9,2496.4,2.06139591]
[1730427829593,4.00497,2496.9,2495.7,4.221]
[1730427829594,4.00592,2496.3,2495.6,4.00702]
[1730427829863,0.03544184,2496.3,2496.1,4.0062]
[1730427830028,5.61887,2496.7,2496.1,4.0062]
[1730427830220,0.03523532,2496.3,2496.1,4.0062]
[1730427830443,9.62429,2496.7,2496.1,0.08011552]
[1730427830444,4.00547,2496.6,2496.1,0.08011552]
[1730427830632,0.03522445,2496.3,2496.1,0.08011552]
[1730427830831,5.61887,2496.7,2496.1,0.08011552]
[1730427831041,0.03522445,2496.3,2496.1,4.08634552]
[1730427831337,4.00547,2496.6,2496.2,2.08689951]
[1730427831673,1.6457,2496.9,2496.2,1.67225905]
[1730427831968,4.04094445,2496.5,2496.2,0.06005905]
[1730427832172,4.00572,2496.5,2496.2,0.06005905]
[1730427832376,0.03522445,2496.4,2496.2,0.06005905]
[1730427833177,4.00537,2496.7,2496.2,0.06005905]
[1730427833465,4.00553,2496.6,2496.2,0.06005905]
[1730427833672,0.03522445,2496.6,2496.2,0.06005905]
[1730427834200,4.00548,2496.6,2496.2,0.63590625]
[1730427834345,4.00533,2496.7,2496.2,0.06005905]
[1730427834558,8.01073,2496.7,2496.2,0.06005905]
[1730427834753,4.00533,2496.7,2496.2,0.06005905]
[1730427835055,4.00544,2496.6,2496.2,0.06005905]
[1730427835687,1.5566,2496.5,2496.2,0.06005905]
[1730427835991,4.00587,2496.4,2496.2,0.06005905]
[1730427836961,8.01177,2496.4,2496.2,0.06005905]
[1730427837162,4.00587,2496.4,2496.2,0.06005905]
[1730427837360,4.00592,2496.3,2496.2,0.06005905]
[1730427837970,4.00587,2496.4,2496.2,0.06005905]
[1730427838281,4.00592,2496.3,2496.2,0.06005905]
[1730427838802,4.00587,2496.4,2496.2,0.06005905]
[1730427839171,4.00592,2496.3,2496.2,0.06005905]
[1730427840409,1.5566,2496.5,2496.2,0.06005905]
[1730427840698,5.40343831,2497.9,2496.2,0.06005905]
[1730427840699,1.6485,2496.8,2496.2,0.06005905]
[1730427840903,4.00572,2496.5,2496.2,0.06005905]
[1730427841260,4.00592,2496.3,2496.2,0.06005905]
[1730427841458,5.65442,2496.3,2496.2,0.06005905]
[1730427842480,1.5741,2496.7,2496.2,0.06005905]
[1730427842702,4.00588,2496.4,2496.2,0.06005905]
[1730427842893,4.00592,2496.3,2496.2,0.06005905]
[1730427843097,4.00588,2496.4,2496.2,0.06005905]
[1730427844181,4.63853063,2497.2,2496.4,4.00575]
[1730427844182,5.62201,2497.0,2496.4,4.00575]
[1730427844381,5.62163,2497.2,2496.4,4.65376567]
[1730427844583,5.62163,2497.2,2496.6,5.53771]
[1730427844584,4.00453,2497.2,2496.6,5.53771]
[1730427844782,4.00418,2497.4,2496.6,5.53771]
[1730427844783,4.00492,2497.0,2496.6,1.5324]
[1730427845037,4.00496,2496.9,2496.3,1.5324]
[1730427845387,4.00514,2496.8,2496.3,1.5324]
[1730427845597,4.00496,2496.9,2496.4,0.55985391]
[1730427845797,4.00496,2496.9,2496.3,1.5324]
[1730427846385,4.00528,2496.7,2496.3,1.5324]
[1730427846582,4.00576,2496.4,2496.3,1.5324]
[1730427846820,4.00564,2496.5,2496.2,0.06005905]
[1730427847035,4.62853063,2496.9,2496.2,0.06005905]
[1730427847202,9.57585,2496.4,2496.2,0.06005905]
[1730427847588,5.56997,2496.4,2496.2,0.06005905]
[1730427847835,1.5759,2496.8,2496.5,4.00557]
[1730427848129,4.0048,2497.0,2496.5,0.400557]
[1730427848298,8.00911,2497.2,2496.5,4.406147]
[1730427848498,4.00468,2497.1,2496.5,4.406147]
[1730427848719,4.00448,2497.2,2496.3,1.6117]
[1730427848890,4.00545,2496.6,2496.3,1.6117]
[1730427850127,4.00482,2497.0,2496.3,1.69181419]
[1730427850309,8.00918,2497.2,2496.5,4.00557]
[1730427850524,8.00918,2497.2,2496.6,0.08010066]
[1730427850694,4.00464,2497.1,2496.6,0.54366773]
[1730427851188,4.00464,2497.1,2496.6,0.46356707]
[1730427851820,4.63853063,2497.8,2496.6,0.46356707]
[1730427851821,4.00424,2497.4,2496.7,5.51908]
[1730427852092,4.00401,2497.5,2496.9,4.00486]
[1730427852319,4.00401,2497.5,2497.1,1.5139]
[1730427852491,8.00814,2497.5,2497.1,1.5139]
[1730427852693,4.00417,2497.4,2497.1,1.5139]
[1730427852966,0.42959059,2498.0,2497.1,1.5139]
[1730427853096,0.41820701,2498.7,2497.0,0.48057203]
[1730427853097,1.6474,2498.5,2497.6,1.6316]
[1730427853290,4.00305,2498.1,2497.6,2.195149]
[1730427853587,1.6474,2498.5,2497.9,4.00332]
[1730427853834,1.6474,2498.5,2497.7,4.00368]
[1730427854033,4.00283,2498.3,2497.7,8.00724]
[1730427854209,4.00304,2498.1,2497.7,1.3202389]
[1730427854395,4.00337,2497.9,2497.7,1.3202389]
[1730427854725,4.00337,2497.9,2497.6,1.6316]
[1730427855194,4.00324,2498.0,2497.6,1.6316]
[1730427855389,4.00304,2498.1,2497.6,1.6316]
[1730427855588,4.00322,2498.0,2497.6,1.6316]
[1730427855794,4.00322,2498.0,2497.6,2.09476]
[1730427856229,1.6574,2498.5,2497.3,1.6083]
[1730427856432,4.00373,2497.7,2497.3,1.6083]
[1730427856628,4.00406,2497.5,2497.3,1.6083]
[1730427856845,4.00367,2497.8,2497.3,1.6083]
[1730427857131,4.00343,2497.9,2497.3,1.6083]
[1730427857329,4.00343,2497.9,2497.4,0.561267]
[1730427857531,4.00311,2498.1,2497.5,4.004]
[1730427857748,4.00338,2497.9,2497.5,0.55]
[1730427857915,4.00322,2498.0,2497.4,0.561267]
[1730427858106,4.00322,2498.0,2497.4,4.565417]
[1730427858307,4.00346,2497.9,2497.3,1.6083]
[1730427858546,8.00695,2497.9,2497.3,1.6083]
[1730427858849,4.00355,2497.8,2497.3,1.6083]
[1730427859410,4.00369,2497.7,2497.3,1.6083]
[1730427859749,4.00369,2497.7,2497.0,4.405166]
[1730427859750,8.00824,2497.5,2497.0,1.5801]
[1730427860049,4.00411,2497.5,2497.0,1.5801]
[1730427860235,4.00443,2497.3,2497.0,2.438613]
[1730427860412,4.00443,2497.3,2496.8,1.5801]
[1730427860616,4.0049,2497.0,2496.8,1.5801]
[1730427860953,4.0049,2497.0,2496.5,1.6611]
[1730427861244,4.00517,2496.8,2496.5,1.6611]
[1730427861445,4.00488,2497.0,2496.5,1.6611]
[1730427861651,8.00981,2497.0,2496.5,1.6611]
[1730427861960,1.5797,2496.8,2496.2,0.06005905]
[1730427862131,4.00586,2496.4,2496.2,0.06005905]
[1730427862471,4.00592,2496.3,2496.2,0.06005905]
[1730427864257,4.00586,2496.4,2496.2,0.06005905]
[1730427864832,4.00551,2496.6,2496.2,0.06005905]
[1730427865226,1.5797,2496.8,2496.3,4.00585]
[1730427865437,5.58492,2496.8,2496.2,0.06005905]
[1730427865749,4.0053,2496.7,2496.2,0.06005905]
[1730427866052,4.00547,2496.6,2496.2,0.06005905]
[1730427867645,4.00501,2496.9,2496.3,1.6062]
[1730427867819,4.00512,2496.8,2496.4,0.56722291]
[1730427868663,4.00501,2496.9,2496.4,0.56722291]
[1730427869824,5.57671,2497.1,2496.4,0.64732809]
[1730427870166,4.00471,2497.1,2496.4,0.64732809]
[1730427870332,4.00449,2497.2,2496.5,4.63144481]
[1730427870533,4.00408,2497.5,2496.8,4.00502]
[1730427870753,4.00408,2497.5,2497.0,1.6125]
[1730427871152,4.00408,2497.5,2497.0,5.61729]
[1730427871458,4.00384,2497.6,2497.0,5.69737699]
[1730427871616,4.00384,2497.6,2497.1,0.9702217]
[1730427872046,4.00373,2497.7,2497.1,4.9747317]
[1730427872877,4.00373,2497.7,2497.1,0.9702217]
[1730427873177,4.00395,2497.6,2497.1,0.9702217]
[1730427873357,4.00403,2497.5,2497.1,0.9702217]
[1730427874368,4.00403,2497.5,2497.0,1.6125]
[1730427874673,4.00452,2497.2,2496.7,1.6589]
[1730427875276,0.01,2497.9,2496.7,1.6589]
[1730427875277,4.00406,2497.5,2496.8,4.00501]
[1730427875530,1.5743,2497.8,2496.8,0.966928]
[1730427875683,1.5743,2497.8,2496.7,1.6589]
[1730427875684,4.00442,2497.3,2496.7,1.6589]
[1730427875853,4.00442,2497.3,2496.8,4.00508]
[1730427876041,4.00407,2497.5,2496.9,1.5025]
[1730427876244,4.00386,2497.6,2497.0,4.00469]
[1730427876488,4.00386,2497.6,2497.1,0.550719]
[1730427876957,4.004,2497.5,2497.1,0.550719]
[1730427877140,1.5743,2497.8,2496.9,1.5025]
[1730427877342,4.0042,2497.4,2496.9,1.5025]
[1730427877546,4.004,2497.5,2496.9,1.5025]
[1730427877968,4.00392,2497.6,2496.9,1.5025]
[1730427878168,8.00788,2497.6,2496.9,5.50734]
[1730427878478,4.004,2497.5,2497.0,0.951241]
[1730427878988,4.00392,2497.6,2497.0,0.951241]
[1730427879501,4.00378,2497.7,2496.9,5.50734]
[1730427879685,4.00402,2497.5,2496.9,5.50734]
[1730427880181,4.00434,2497.3,2496.9,1.5025]
[1730427880564,4.00406,2497.5,2496.9,1.5025]
[1730427880765,8.00819,2497.5,2496.9,1.5025]
[1730427881165,4.00406,2497.5,2496.9,1.5025]
[1730427881366,4.00419,2497.4,2496.9,1.5025]
[1730427881671,4.00406,2497.5,2496.9,10.463533]
[1730427881866,4.00373,2497.7,2497.0,4.00477]
[1730427882271,4.00373,2497.7,2497.1,0.08008395]
[1730427882468,8.00756,2497.7,2497.1,4.00463]
[1730427882695,4.00404,2497.5,2497.1,1.0463273]
[1730427883119,8.00817,2497.5,2497.1,1.0463273]
[1730427883330,4.00404,2497.5,2497.1,1.0463273]
[1730427883494,4.00346,2497.9,2497.2,1.66098398]